fUSD/lending_fUSD_20240801
["ID","MTS","AMOUNT","RATE_DAILY","PERIOD"]
[333800067,1722520247369,-700.0,0.00012836,2]
[333800068,1722520247379,-231.82,0.00012839,2]
[333800069,1722520247389,-150.0,0.00012842,2]
[333800070,1722520247398,-210.84776497,0.00012855,2]
[333800071,1722520247408,-243.12,0.00012884,2]
[333800072,1722520247417,-300.0,0.00012884,2]
[333800073,1722520247428,-177.73863604,0.00012895,2]
[333800074,1722520247439,-165.241611,0.00012898,2]
[333800075,1722520247449,-2000.0,0.000129,2]
[333800076,1722520247459,-3105.8031,0.000129,2]
[333800077,1722520247469,-164.94588568,0.000129,2]
[333800078,1722520247478,-800.0,0.000129,4]
[333800079,1722520247489,-161.53447551,0.000129,2]
[333800080,1722520247498,-227847.33319837,0.0001299,2]
[333800091,1722520395732,1000.0,0.00024932,120]
[333800093,1722520453794,152.97983263,0.00027,120]
[333800098,1722520970211,420.0,0.00027,120]
[333800099,1722521011258,500.0,0.00027,120]
[333800100,1722521012533,500.0,0.00027,120]
[333800101,1722521014584,500.0,0.00027,120]
[333800102,1722521015966,500.0,0.00027,120]
[333800103,1722521016930,500.0,0.00027,120]
[333800104,1722521018371,500.0,0.00027,120]
[333800105,1722521018605,500.0,0.00027,120]
[333800106,1722521019330,500.0,0.00027,120]
[333800107,1722521021426,500.0,0.00027,120]
[333800108,1722521021533,500.0,0.00027,120]
[333800109,1722521022390,500.0,0.00027,120]
[333800110,1722521023512,500.0,0.00027,120]
[333800111,1722521024674,500.0,0.00027,120]
[333800112,1722521025693,500.0,0.00027,120]
[333800113,1722521026861,500.0,0.00027,120]
[333800114,1722521027794,500.0,0.00027,120]
[333800115,1722521028613,500.0,0.00027,120]
[333800117,1722521029469,500.0,0.00027,120]
[333800118,1722521034169,500.0,0.00027,120]
[333800119,1722521037429,500.0,0.00027,120]
[333800120,1722521049789,500.0,0.00027,120]
[333800121,1722521050568,500.0,0.00027,120]
[333800122,1722521051539,500.0,0.00027,120]
[333800123,1722521052271,500.0,0.00027,120]
[333800124,1722521063414,500.0,0.00027,120]
[333800125,1722521064493,500.0,0.00027,120]
[333800126,1722521067603,500.0,0.00027,120]
[333800127,1722521076042,500.0,0.00027,120]
[333800128,1722521080055,500.0,0.00027,120]
[333800129,1722521080146,-170.53,0.0001337,30]
[333800130,1722521080209,-152.0,0.00016962,30]
[333800131,1722521080245,-152.0,0.00017078,31]
[333800132,1722521080280,-152.0,0.00017194,32]
[333800133,1722521080317,-152.0,0.0001731,33]
[333800134,1722521080352,-414.0,0.0001787,30]
[333800135,1722521080388,-414.0,0.0001788,30]
[333800136,1722521080426,-414.0,0.0001789,30]
[333800137,1722521080464,-414.0,0.0001887,30]
[333800138,1722521080898,-414.0,0.0001888,30]
[333800139,1722521080935,-414.0,0.0001889,30]
[333800140,1722521080972,-414.0,0.0001978,30]
[333800141,1722521081008,-414.0,0.0001979,30]
[333800142,1722521081049,-421.48,0.0002038,30]
[333800143,1722521081088,-414.0,0.0002039,30]
[333800144,1722521081124,-1049.57124552,0.00020439,40]
[333800145,1722521081159,-1049.57124552,0.00020439,40]
[333800146,1722521081203,-400.0,0.000211,30]
[333800147,1722521081247,-500.0,0.00021918,30]
[333800148,1722521081283,-500.0,0.00021918,30]
[333800149,1722521081316,-500.0,0.00021918,30]
[333800150,1722521081350,-420.11835201,0.00021918,30]
[333800151,1722521081385,-4548.75345631,0.00022,30]
[333800152,1722521081420,-170.53,0.00022502,30]
[333800153,1722521081467,-1250.0,0.00024657,30]
[333800154,1722521081516,-2700.0,0.00025,30]
[333800155,1722521081565,-1250.0,0.00025479,30]
[333800156,1722521081601,-3000.0,0.00026,30]
[333800157,1722521081639,-1208.0,0.00026139,30]
[333800158,1722521081674,-1250.0,0.00026301,30]
[333800159,1722521081719,-664.82688244,0.00026901,30]
[333800160,1722521081755,-3200.0,0.00027,30]
[333800161,1722521081788,-1636.29,0.00027,30]
[333800162,1722521081822,-552.37809679,0.00027,50]
[333800163,1722521081856,-800.0,0.00027014,120]
[333800164,1722521081890,-800.0,0.00027014,120]
[333800165,1722521081923,-800.0,0.00027014,120]
[333800166,1722521081956,-800.0,0.00027014,120]
[333800167,1722521081991,-1250.0,0.00027123,30]
[333800168,1722521082024,-193.05269917,0.0002736,120]
[333800169,1722521082059,-294.78569841,0.0002739,30]
[333800170,1722521082092,-1000.0,0.00027397,60]
[333800171,1722521082125,-1000.0,0.00027397,60]
[333800172,1722521082160,-1000.0,0.00027397,60]
[333800173,1722521082193,-1000.0,0.00027397,60]
[333800174,1722521082229,-1000.0,0.00027397,60]
[333800175,1722521082264,-1000.0,0.00027397,60]
[333800176,1722521082298,-1000.0,0.00027397,60]
[333800177,1722521082333,-1000.0,0.00027397,60]
[333800178,1722521082366,-1000.0,0.00027397,60]
[333800179,1722521082400,-1000.0,0.00027397,60]
[333800180,1722521082434,-1000.0,0.00027397,60]
[333800181,1722521082468,-920.82059819,0.00027397,60]
[333800182,1722521082503,-200.0,0.00027397,60]
[333800183,1722521082538,-4000.0,0.00027397,30]
[333800184,1722521082574,-1250.0,0.00027945,30]
[333800185,1722521082610,-835.90556501,0.0002863,30]
[333800186,1722521082645,-835.90556501,0.0002874,30]
[333800187,1722521082678,-1250.0,0.00028767,30]
[333800188,1722521082714,-835.90556501,0.00028877,30]
[333800189,1722521082749,-835.90556501,0.00028986,30]
[333800190,1722521082784,-1000.0,0.00029,120]
[333800191,1722521082818,-1198.5552634,0.00029,30]
[333800192,1722521082853,-835.90556501,0.00029123,30]
[333800193,1722521082886,-1179.0,0.0002915,120]
[333800194,1722521082922,-835.90556501,0.00029233,30]
[333800195,1722521082957,-835.90556501,0.00029342,30]
[333800196,1722521082992,-835.90556501,0.00029479,30]
[333800197,1722521083027,-320.4733825,0.00029569,120]
[333800198,1722521083061,-592.1272306,0.00029569,120]
[333800199,1722521083095,-408.0654762,0.00029569,120]
[333800200,1722521083129,-1250.0,0.00029589,30]
[333800201,1722521083165,-835.90556501,0.00029589,30]
[333800202,1722521083201,-835.90556501,0.00029726,30]
[333800203,1722521083237,-835.90556501,0.00029836,30]
[333800204,1722521083274,-1800.0,0.00029874,31]
[333800205,1722521083310,-240.90826,0.00029948,30]
[333800206,1722521083346,-835.90556501,0.00029973,30]
[333800207,1722521083383,-383.28375334,0.0003,30]
[333800208,1722521083416,-151.0,0.0003,120]
[333800209,1722521083452,-193.66666667,0.0003,120]
[333800210,1722521083488,-450.0,0.0003,30]
[333800211,1722521083523,-1800.0,0.0003,31]
[333800212,1722521083559,-1000.0,0.0003,120]
[333800213,1722521083599,-250.0,0.0003,30]
[333800214,1722521083633,-259.73462604,0.0003,30]
[333800215,1722521083671,-1243.75699599,0.0003,60]
[333800216,1722521083708,-1397.99221319,0.0003,120]
[333800217,1722521083746,-835.90556501,0.00030082,30]
[333800218,1722521083781,-1250.0,0.00030136,30]
[333800219,1722521083816,-212.8211521,0.00030137,60]
[333800220,1722521083849,-835.90556501,0.00030192,30]
[333800221,1722521083883,-150.0,0.00030206,120]
[333800222,1722521083922,-150.0,0.00030326,120]
[333800223,1722521083960,-835.90556501,0.00030329,30]
[333800224,1722521083999,-150.0,0.0003035,120]
[333800225,1722521084036,-1250.0,0.0003041,30]
[333800226,1722521084075,-588.0,0.00030575,120]
[333800227,1722521084113,-548.0,0.00030613,30]
[333800228,1722521084149,-588.0,0.0003063,120]
[333800229,1722521084185,-588.0,0.00030685,120]
[333800230,1722521084219,-288.0,0.00030685,120]
[333800231,1722521084252,-250.0,0.000308,30]
[333800232,1722521084286,-568.0,0.00030822,120]
[333800233,1722521084321,-193.66666667,0.00030849,120]
[333800234,1722521084356,-1250.0,0.00030958,30]
[333800235,1722521084394,-50000.0,0.00031,31]
[333800236,1722521084428,-1800.0,0.00031,32]
[333800237,1722521084465,-409.0,0.00031,120]
[333800238,1722521084785,-150.0,0.00031134,120]
[333800239,1722521084820,-320.4733825,0.0003121,120]
[333800240,1722521084854,-1250.0,0.00031232,30]
[333800241,1722521084887,-836.72981065,0.000314,30]
[333800242,1722521084923,-151.0,0.00031452,120]
[333800243,1722521084957,-950088.1349333,0.000315,30]
[333800244,1722521085020,-170.53,0.00031635,30]
[333800245,1722521085055,-172.67,0.00031644,91]
[333800246,1722521085091,-2416.0,0.00031661,120]
[333800247,1722521085124,-193.66666667,0.00031699,120]
[333800248,1722521085159,-150.0,0.00031727,120]
[333800249,1722521085193,-1250.0,0.0003178,30]
[333800250,1722521085233,-50000.0,0.00032,32]
[333800251,1722521085268,-1146.20527957,0.00032,120]
[333800252,1722521085303,-1812.20853662,0.00032,90]
[333800253,1722521085340,-1800.0,0.00032,33]
[333800254,1722521085375,-1000.0,0.00032,120]
[333800255,1722521085411,-2000.0,0.00032,120]
[333800256,1722521085445,-1250.0,0.00032054,30]
[333800257,1722521085480,-193.66666667,0.00032548,120]
[333800258,1722521085513,-1250.0,0.00032602,30]
[333800259,1722521085548,-2642.0,0.000327,35]
[333800260,1722521085585,-176.11571377,0.000328,30]
[333800261,1722521085620,-320.4733825,0.00032851,120]
[333800262,1722521085655,-1000.0,0.00032876,30]
[333800263,1722521085690,-1000.0,0.00032876,30]
[333800264,1722521085726,-1000.0,0.00032876,30]
[333800265,1722521085760,-1000.0,0.00032876,30]
[333800266,1722521085795,-1000.0,0.00032876,30]
[333800267,1722521085829,-1000.0,0.00032876,30]
[333800268,1722521085865,-655.89792568,0.00032876,30]
[333800269,1722521085902,-1572.29,0.00032876,30]
[333800270,1722521085937,-1250.0,0.00032876,30]
[333800271,1722521085974,-503.48164999,0.00032876,30]
[333800272,1722521086009,-1054.7930093,0.00032876,30]
[333800273,1722521086044,-2607.79,0.00032876,120]
[333800274,1722521086077,-2607.79,0.00032876,120]
[333800275,1722521086111,-2607.79,0.00032876,120]
[333800276,1722521086145,-2607.79,0.00032876,120]
[333800277,1722521086181,-2607.79,0.00032876,120]
[333800278,1722521086216,-2607.79,0.00032876,120]
[333800279,1722521086252,-2607.79,0.00032876,120]
[333800280,1722521086286,-2607.79,0.00032876,120]
[333800281,1722521086323,-2607.79,0.00032876,120]
[333800282,1722521086361,-2607.79,0.00032876,120]
[333800283,1722521086397,-2607.79,0.00032876,120]
[333800284,1722521086435,-2607.79,0.00032876,120]
[333800285,1722521086473,-2607.79,0.00032876,120]
[333800286,1722521086509,-2607.79,0.00032876,120]
[333800287,1722521086547,-2607.79,0.00032876,120]
[333800288,1722521086584,-2607.79,0.00032876,120]
[333800289,1722521086619,-2607.79,0.00032876,120]
[333800290,1722521086655,-2607.79,0.00032876,120]
[333800291,1722521086690,-2607.79,0.00032876,120]
[333800292,1722521086727,-2607.79,0.00032876,120]
[333800293,1722521086762,-2607.79,0.00032876,120]
[333800294,1722521086796,-2607.79,0.00032876,120]
[333800295,1722521086833,-2607.79,0.00032876,120]
[333800296,1722521086868,-2607.9607258,0.00032876,120]
[333800297,1722521086905,-200.0,0.00032877,60]
[333800298,1722521086943,-1388.51215753,0.000329,30]
[333800299,1722521086980,-13411.90373712,0.000329,30]
[333800300,1722521087014,-151.0,0.00032904,120]
[333800301,1722521087052,-50000.0,0.00033,33]
[333800302,1722521087089,-1800.0,0.00033,34]
[333800303,1722521087124,-1000.0,0.00033,120]
[333800304,1722521087159,-2000.0,0.00033,120]
[333800305,1722521087191,-3278.74401032,0.00033,120]
[333800306,1722521087228,-2773.18,0.00033151,120]
[333800307,1722521087264,-150.0,0.00033391,120]
[333800308,1722521087299,-193.66666667,0.00033397,120]
[333800309,1722521087335,-1572.29,0.00033424,30]
[333800310,1722521087371,-1250.0,0.00033424,30]
[333800311,1722521087408,-152.39,0.000335,31]
[333800312,1722521087444,-152.39,0.000335,31]
[333800313,1722521087481,-152.39,0.000335,31]
[333800314,1722521087518,-152.39,0.000335,31]
[333800315,1722521087556,-152.39,0.000335,31]
[333800316,1722521087592,-152.39,0.000335,31]
[333800317,1722521087629,-152.39,0.000335,31]
[333800318,1722521087669,-152.39,0.000335,31]
[333800319,1722521087708,-152.39,0.000335,31]
[333800320,1722521087744,-768.0,0.00033674,30]
[333800321,1722521087778,-1250.0,0.00033698,30]
[333800322,1722521087812,-1572.29,0.00033972,30]
[333800323,1722521087851,-50000.0,0.00034,34]
[333800324,1722521087888,-614.30354806,0.00034,30]
[333800325,1722521087925,-1600.0,0.00034,120]
[333800326,1722521087962,-1800.0,0.00034,35]
[333800327,1722521088001,-1000.0,0.00034,120]
[333800328,1722521088036,-1800.0,0.00034,35]
[333800329,1722521088072,-150.0,0.00034084,120]
[333800330,1722521088108,-1250.0,0.00034246,30]
[333800331,1722521088144,-193.66666667,0.00034247,120]
[333800332,1722521088179,-151.0,0.00034356,120]
[333800333,1722521088215,-150.0,0.00034404,120]
[333800334,1722521088251,-320.4733825,0.00034491,120]
[333800335,1722521088286,-1572.29,0.0003452,30]
[333800336,1722521088321,-1250.0,0.0003452,30]
[333800337,1722521088359,-702.406209,0.000348,30]
[333800338,1722521088394,-1017257.16162858,0.000348,30]
[333800339,1722521088434,-50000.0,0.00035,35]
[333800340,1722521088471,-936.541612,0.00035,30]
[333800341,1722521088792,-251.05979777,0.00035,30]
[333800342,1722521088830,-2641.02851885,0.00035,30]
[333800343,1722521088865,-2000.0,0.00035,120]
[333800344,1722521088902,-200.0,0.00035,30]
[333800345,1722521088939,-1991.64059415,0.00035,30]
[333800346,1722521088975,-160.0,0.00035,30]
[333800347,1722521089012,-413.0,0.00035,90]
[333800348,1722521089050,-957.56434406,0.00035,90]
[333800349,1722521089086,-958.38701646,0.00035,120]
[333800350,1722521089123,-1800.0,0.00035,36]
[333800351,1722521089162,-1572.29,0.00035068,30]
[333800352,1722521089201,-1250.0,0.00035068,30]
[333800353,1722521089239,-193.66666667,0.00035096,120]
[333800354,1722521089279,-150.0,0.00035263,120]
[333800355,1722521089316,-150.0,0.00035334,120]
[333800356,1722521089355,-1250.0,0.00035342,30]
[333800357,1722521089393,-1170.677016,0.000355,30]
[333800358,1722521089431,-1404.812419,0.000356,30]
[333800359,1722521089470,-1572.29,0.00035616,30]
[333800360,1722521089506,-200.0,0.00035616,60]
[333800361,1722521089542,-1404.812419,0.000357,30]
[333800362,1722521089578,-1638.947822,0.000358,30]
[333800363,1722521089612,-151.0,0.00035808,120]
[333800364,1722521089649,-1404.812419,0.0003582,30]
[333800365,1722521089686,-1250.0,0.0003589,30]
[333800366,1722521089726,-193.66666667,0.00035945,120]
[333800367,1722521089765,-50000.0,0.00036,36]
[333800368,1722521089801,-1800.0,0.00036,37]
[333800369,1722521089836,-1500.0,0.00036,120]
[333800370,1722521089870,-1000.0,0.00036,120]
[333800371,1722521089903,-1000.0,0.00036,120]
[333800372,1722521089937,-4076.58693769,0.00036,120]
[333800373,1722521089971,-2906.2,0.00036114,54]
[333800374,1722521090007,-320.4733825,0.00036132,120]
[333800375,1722521090041,-150.0,0.00036151,120]
[333800376,1722521090074,-1572.29,0.00036164,30]
[333800377,1722521090108,-1250.0,0.00036164,30]
[333800378,1722521090147,-152.39,0.000363,31]
[333800379,1722521090186,-152.39,0.000363,31]
[333800380,1722521090223,-152.39,0.000363,31]
[333800381,1722521090261,-152.39,0.000363,31]
[333800382,1722521090298,-152.39,0.000363,31]
[333800383,1722521090335,-152.39,0.000363,31]
[333800384,1722521090373,-152.39,0.000363,31]
[333800385,1722521090409,-152.39,0.000363,31]
[333800386,1722521090447,-152.39,0.000363,31]
[333800387,1722521090483,-150.0,0.00036393,120]
[333800388,1722521090520,-150.0,0.00036504,120]
[333800389,1722521090556,-1572.29,0.00036712,30]
[333800390,1722521090593,-1250.0,0.00036712,30]
[333800391,1722521090629,-193.66666667,0.00036795,120]
[333800392,1722521090667,-187.8414148,0.0003687,120]
[333800393,1722521090701,-1250.0,0.00036986,30]
[333800394,1722521090742,-50000.0,0.00037,37]
[333800395,1722521090775,-334.43499075,0.00037,30]
[333800396,1722521090810,-1800.0,0.00037,38]
[333800397,1722521090845,-205.0,0.00037,30]
[333800398,1722521090881,-854.0,0.00037042,30]
[333800399,1722521090916,-1572.29,0.0003726,30]
[333800400,1722521090950,-151.0,0.0003726,120]
[333800401,1722521090986,-346.0,0.0003746,120]
[333800403,1722521091021,-393.11701252,0.000375,30]
[333800404,1722521091056,-1250.0,0.00037534,30]
[333800405,1722521091096,-193.66666667,0.00037644,120]
[333800406,1722521091133,-2000.0,0.00037654,31]
[333800407,1722521091170,-150.0,0.00037726,120]
[333800408,1722521091205,-1572.29,0.00037808,30]
[333800409,1722521091242,-1250.0,0.00037808,30]
[333800410,1722521091277,-220.36630299,0.00037999,120]
[333800411,1722521091315,-50000.0,0.00038,38]
[333800412,1722521091351,-1800.0,0.00038,39]
[333800413,1722521091384,-2978.47009583,0.00038,30]
[333800414,1722521091416,-633.6918151,0.00038,30]
[333800415,1722521091448,-1400.0,0.00038,120]
[333800416,1722521091480,-1000.0,0.00038,120]
[333800417,1722521091514,-500.0,0.00038,30]
[333800418,1722521091547,-5000.0,0.00038,120]
[333800419,1722521091580,-838.27071439,0.00038,120]
[333800420,1722521091615,-150.0,0.00038164,120]
[333800421,1722521091650,-150.0,0.00038244,120]
[333800422,1722521091687,-1572.29,0.00038356,30]
[333800423,1722521091724,-1250.0,0.00038356,30]
[333800424,1722521091761,-1037.4,0.00038356,120]
[333800425,1722521091796,-200.0,0.00038356,60]
[333800426,1722521091829,-208.27640474,0.000384,33]
[333800427,1722521091864,-150.0,0.00038478,120]
[333800428,1722521091898,-193.66666667,0.00038493,120]
[333800429,1722521091933,-150.0,0.00038509,120]
[333800430,1722521091965,-5687.36105516,0.00038517,120]
[333800431,1722521092000,-1250.0,0.0003863,30]
[333800432,1722521092034,-657.28086664,0.000387,120]
[333800433,1722521092067,-151.0,0.00038712,120]
[333800434,1722521092104,-351549.30674903,0.000388,30]
[333800435,1722521092137,-1411.83826265,0.0003888,90]
[333800436,1722521092172,-1572.29,0.00038904,30]
[333800437,1722521092207,-1037.4,0.00038904,120]
[333800438,1722521092247,-50000.0,0.00039,39]
[333800439,1722521092285,-500.0,0.00039,120]
[333800440,1722521092322,-1458.22800389,0.00039,30]
[333800441,1722521092360,-1460.94404811,0.00039,120]
[333800442,1722521092396,-1800.0,0.00039,40]
[333800443,1722521092432,-2145.58514371,0.00039,120]
[333800444,1722521092471,-1152.0,0.00039,120]
[333800445,1722521092788,-160.0,0.00039,30]
[333800446,1722521092827,-9449.57100948,0.00039,120]
[333800447,1722521092869,-152.39,0.000391,31]
[333800448,1722521092909,-152.39,0.000391,31]
[333800449,1722521092948,-152.39,0.000391,31]
[333800450,1722521092989,-152.39,0.000391,31]
[333800451,1722521093036,-152.39,0.000391,31]
[333800452,1722521093079,-152.39,0.000391,31]
[333800453,1722521093119,-152.39,0.000391,31]
[333800454,1722521093158,-152.39,0.000391,31]
[333800455,1722521093199,-152.39,0.000391,31]
[333800456,1722521093235,-1250.0,0.00039178,30]
[333800457,1722521093273,-193.66666667,0.00039342,120]
[333800458,1722521093310,-569.4939044,0.000394,30]
[333800459,1722521093345,-1572.29,0.00039452,30]
[333800460,1722521093380,-1250.0,0.00039452,30]
[333800461,1722521093414,-1037.4,0.00039452,120]
[333800462,1722521093449,-362.58356611,0.000395,30]
[333800463,1722521093486,-3170.4,0.00039529,74]
[333800464,1722521093522,-902.425927,0.00039609,120]
[333800465,1722521093559,-329.36407935,0.000398,90]
[333800466,1722521093594,-152.89698307,0.000398,120]
[333800467,1722521093629,-500.0,0.00039863,120]
[333800468,1722521093666,-410.0,0.00039886,90]
[333800469,1722521093702,-24022.96039051,0.00039898,36]
[333800470,1722521093736,-5120.86734108,0.000399,30]
[333800471,1722521093771,-1049.1652,0.0003998,30]
[333800472,1722521093807,-6853.62958936,0.0003998,30]
[333800473,1722521093842,-410.0,0.00039986,90]
[333800474,1722521093878,-250.0,0.00039999,30]
[333800475,1722521093918,-50000.0,0.0004,30]
[333800476,1722521093956,-50000.0,0.0004,40]
[333800477,1722521093991,-929.85307473,0.0004,120]
[333800478,1722521094025,-1572.29,0.0004,30]
[333800479,1722521094059,-477.12749073,0.0004,30]
[333800480,1722521094097,-2927.12913888,0.0004,30]
[333800481,1722521094131,-450.0,0.0004,30]
[333800482,1722521094165,-1483.57929136,0.0004,30]
[333800483,1722521094202,-500.48526097,0.0004,30]
[333800484,1722521094237,-550.78015106,0.0004,45]
[333800485,1722521094272,-369.56939986,0.0004,30]
[333800486,1722521094307,-554.58615627,0.0004,30]
[333800487,1722521094343,-176.70270717,0.0004,120]
[333800488,1722521094377,-1000.0,0.0004,120]
[333800489,1722521094412,-343.00073541,0.0004,30]
[333800490,1722521094446,-500.0,0.0004,30]
[333800491,1722521094481,-500.0,0.0004,30]
[333800492,1722521094515,-500.0,0.0004,30]
[333800493,1722521094550,-5048.0,0.0004,120]
[333800494,1722521094599,-39827.0,0.0004,30]
[333800495,1722521094632,-988.0,0.0004,60]
[333800496,1722521094670,-571.0,0.0004,120]
[333800497,1722521094705,-1250.0,0.0004,30]
[333800498,1722521094740,-200.0,0.0004,120]
[333800499,1722521094774,-701.3502902,0.0004,30]
[333800500,1722521094809,-1193.5232954,0.0004,30]
[333800501,1722521094844,-10014.47234647,0.0004,120]
[333800502,1722521094878,-838.27071439,0.0004,120]
[333800503,1722521094913,-351.0,0.0004,60]
[333800504,1722521094947,-303.24147636,0.0004,120]
[333800505,1722521094982,-3061.51,0.0004,90]
[333800506,1722521095021,-2110.0,0.0004,30]
[333800507,1722521095058,-1176.42696343,0.0004,120]
[333800508,1722521095096,-159.79,0.0004,30]
[333800509,1722521095133,-3534.56580013,0.0004,120]
[333800510,1722521095169,-2491.3570743,0.0004,120]
[333800511,1722521095206,-6116.53042711,0.0004,120]
[333800512,1722521095244,-1027.61,0.0004,120]
[333800513,1722521095280,-792.35,0.0004,120]
[333800514,1722521095318,-370.03,0.0004,120]
[333800515,1722521095356,-1037.4,0.0004,120]
[333800516,1722521095393,-821.37,0.0004,120]
[333800517,1722521095432,-425.534046,0.0004,30]
[333800518,1722521095468,-150.0,0.0004,60]
[333800519,1722521095505,-1800.0,0.00040052,30]
[333800520,1722521095539,-1218.19294239,0.00040073,120]
[333800521,1722521095574,-888.28759729,0.00040131,30]
[333800522,1722521095609,-151.0,0.00040164,120]
[333800523,1722521095644,-193.66666667,0.00040192,120]
[333800524,1722521095683,-557.87865388,0.00040258,40]
[333800525,1722521095719,-912.38931668,0.00040258,40]
[333800526,1722521095758,-336.54295795,0.00040258,40]
[333800527,1722521095795,-1250.0,0.00040273,30]
[333800528,1722521095833,-1800.0,0.00040282,30]
[333800529,1722521095869,-500.0,0.00040361,30]
[333800530,1722521095905,-800.0,0.00040443,30]
[333800531,1722521095942,-500.0,0.00040471,30]
[333800532,1722521095979,-260.0,0.000405,30]
[333800533,1722521096014,-2110.0,0.000405,30]
[333800534,1722521096052,-1572.29,0.00040547,30]
[333800535,1722521096087,-1037.4,0.00040547,120]
[333800536,1722521096127,-3200.0,0.00040716,30]
[333800537,1722521096165,-1000.0,0.00040735,30]
[333800538,1722521096201,-600.0,0.00040765,30]
[333800539,1722521096241,-170.53,0.00040767,120]
[333800540,1722521096279,-1250.0,0.00040821,30]
[333800541,1722521096315,-1000.0,0.00040902,30]
[333800542,1722521096356,-500.0,0.00040911,30]
[333800543,1722521096392,-1800.0,0.00040948,30]
[333800544,1722521096430,-681.83972207,0.00040951,30]
[333800545,1722521096465,-500.0,0.00040972,30]
[333800546,1722521096505,-50000.0,0.00041,31]
[333800547,1722521096545,-50000.0,0.00041,41]
[333800548,1722521096582,-209.50351326,0.00041,120]
[333800549,1722521096948,-1242.20849504,0.00041,30]
[333800550,1722521096985,-284.13501496,0.00041,120]
[333800551,1722521097019,-2110.0,0.00041,30]
[333800552,1722521097053,-62826.81452523,0.00041,120]
[333800553,1722521097086,-1532.64825316,0.00041,120]
[333800554,1722521097120,-600.0,0.00041001,30]
[333800555,1722521097154,-193.66666667,0.00041041,120]
[333800556,1722521097189,-1409.26155055,0.00041044,120]
[333800557,1722521097224,-500.0,0.00041063,30]
[333800558,1722521097261,-1572.29,0.00041095,30]
[333800559,1722521097299,-1250.0,0.00041095,30]
[333800560,1722521097337,-1037.4,0.00041095,120]
[333800561,1722521097374,-200.0,0.00041096,60]
[333800562,1722521097412,-152.15,0.00041123,30]
[333800563,1722521097450,-3200.0,0.00041142,30]
[333800564,1722521097486,-500.0,0.0004115,30]
[333800565,1722521097523,-150.0,0.00041156,120]
[333800566,1722521097558,-1779.8686789,0.0004118,111]
[333800567,1722521097594,-3200.0,0.00041228,30]
[333800568,1722521097630,-1000.0,0.000413,30]
[333800569,1722521097666,-1000.0,0.000413,30]
[333800570,1722521097700,-400000.0,0.000415,90]
[333800571,1722521097734,-2110.0,0.000415,30]
[333800572,1722521097771,-1000.0,0.00041514,30]
[333800573,1722521097808,-1000.0,0.000416,30]
[333800574,1722521097843,-1000.0,0.000416,30]
[333800575,1722521097878,-151.0,0.00041616,120]
[333800576,1722521097914,-1572.29,0.00041643,30]
[333800577,1722521097950,-1250.0,0.00041643,30]
[333800578,1722521097985,-1037.4,0.00041643,120]
[333800579,1722521098021,-600.0,0.00041669,30]
[333800580,1722521098055,-500.0,0.0004167,30]
[333800581,1722521098089,-150.0,0.00041696,120]
[333800582,1722521098124,-810.0,0.00041744,30]
[333800583,1722521098159,-500.0,0.00041864,30]